[Event "23rd ETCC Women 2021"]
[Site "Catez"]
[Date "2021.11.15"]
[Round "4.45"]
[White "Roebers, Eline"]
[Black "Dolzhikova, Olga"]
[Result "1-0"]
[ECO "B15"]
[WhiteElo "2304"]
[BlackElo "2187"]
[Annotator "NA"]
[PlyCount "55"]
[EventDate "2021.11.08"]
[EventType "team-tourn"]
[EventCountry "SLO"]
[SourceTitle "playchess.com"]
[Source "ChessBase"]
[SourceQuality "1"]
[WhiteTeam "Netherlands"]
[BlackTeam "Norway"]
[WhiteTeamCountry "NED"]
[BlackTeamCountry "NOR"]
[TimeControl "40/5400+30:1800+30"]

1. e4 {[%emt 0:00:04]} g6 {[%emt 0:00:07]} 2. d4 {[%emt 0:00:23]} Bg7 {[%emt 0:
00:03]} 3. Nc3 {[%emt 0:00:28]} c6 {[%emt 0:00:15]} 4. Nf3 {[%emt 0:00:21]} d5
{[%emt 0:00:10]} 5. h3 {[%emt 0:00:21]} dxe4 {[%emt 0:00:09]} 6. Nxe4 {[%emt 0:
00:06]} Nd7 {[%emt 0:00:07]} 7. Bc4 {[%emt 0:00:47]} Nb6 {[%emt 0:00:42]} 8.
Bb3 {[%emt 0:00:34]} Nh6 {[%emt 0:02:39]} 9. O-O {[%emt 0:01:38]} Nf5 {[%emt 0:
00:43]} 10. c3 {[%emt 0:00:34]} Nd5 {[%emt 0:01:08]} 11. Re1 {[%emt 0:02:18]}
O-O {[%emt 0:00:12]} 12. Qe2 {[%emt 0:02:23]} Re8 {[%emt 0:36:05]} 13. Bg5 {
[%emt 0:02:12]} h6 {[%emt 0:18:15]} 14. Bd2 {[%emt 0:02:41]} a5 {[%emt 0:02:29]
} 15. Rad1 {[%emt 0:06:15]} Qc7 {[%emt 0:04:58]} 16. Bc1 {[%emt 0:01:38]} b6 {
[%emt 0:06:38]} 17. a3 {[%emt 0:09:36]} Bb7 {[%emt 0:01:17]} 18. g4 {[%emt 0:
13:00]} Nd6 {[%emt 0:00:34]} 19. Nxd6 {[%emt 0:00:42]} Qxd6 {[%emt 0:02:36]}
20. Ne5 {[%emt 0:00:10]} e6 {[%emt 0:07:17]} 21. c4 {[%emt 0:06:17]} Nf6 {
[%emt 0:03:50]} 22. Qf3 {[%emt 0:03:19]} Qc7 {[%emt 0:06:25]} 23. Bf4 {[%emt 0:
04:31]} g5 {[%emt 0:00:32]} 24. Bh2 {[%emt 0:00:43]} Qe7 {[%emt 0:00:09]} 25.
Nxc6 {[%emt 0:00:36]} Qf8 {[%emt 0:04:02]} 26. d5 {[%emt 0:01:35]} Bxc6 {
[%emt 0:01:03]} 27. dxc6 {[%emt 0:00:06]} Rac8 {[%emt 0:00:27]} 28. Bd6 {
[%emt 0:00:21]} 1-0

[Event "23rd ETCC Women 2021"]
[Site "Catez"]
[Date "2021.11.15"]
[Round "4.47"]
[White "Van Foreest, Machteld"]
[Black "Machlik, Edit"]
[Result "1-0"]
[ECO "B28"]
[WhiteElo "2141"]
[BlackElo "2087"]
[Annotator "NA"]
[PlyCount "83"]
[EventDate "2021.11.08"]
[EventType "team-tourn"]
[EventCountry "SLO"]
[SourceTitle "playchess.com"]
[Source "ChessBase"]
[SourceQuality "1"]
[WhiteTeam "Netherlands"]
[BlackTeam "Norway"]
[WhiteTeamCountry "NED"]
[BlackTeamCountry "NOR"]
[TimeControl "40/5400+30:1800+30"]

1. e4 {[%emt 0:00:05]} c5 {[%emt 0:00:06]} 2. Nf3 {[%emt 0:00:40]} Nc6 {
[%emt 0:00:17]} 3. Nc3 {[%emt 0:07:50]} a6 {[%emt 0:09:24]} 4. d4 {[%emt 0:06:
24]} cxd4 {[%emt 0:01:18]} 5. Nxd4 {[%emt 0:00:02]} e5 {[%emt 0:10:17]} 6. Nf5
{[%emt 0:03:56]} d6 {[%emt 0:05:19]} 7. Ne3 {[%emt 0:07:27]} Nf6 {[%emt 0:08:
52]} 8. Ned5 {[%emt 0:01:27]} Be7 {[%emt 0:08:10]} 9. Be3 {[%emt 0:12:04]} O-O
{[%emt 0:02:59]} 10. Bb6 {[%emt 0:01:25]} Qd7 {[%emt 0:01:09]} 11. Qd2 {
[%emt 0:07:15]} Nxd5 {[%emt 0:10:09]} 12. Nxd5 {[%emt 0:01:51]} Qg4 {[%emt 0:
07:00]} 13. f3 {[%emt 0:05:16]} Bh4+ {[%emt 0:03:07]} 14. g3 {[%emt 0:05:56]}
Qxf3 {[%emt 0:01:14]} 15. Bg2 {[%emt 0:02:29]} Bxg3+ {[%emt 0:00:22]} 16. hxg3
{[%emt 0:00:04]} Qxg3+ {[%emt 0:04:29]} 17. Qf2 {[%emt 0:06:34]} Qxf2+ {
[%emt 0:00:27]} 18. Kxf2 {[%emt 0:01:54]} f5 {[%emt 0:03:49]} 19. Raf1 {
[%emt 0:04:48]} Be6 {[%emt 0:07:40]} 20. Nc7 {[%emt 0:03:40]} Bc4 {[%emt 0:00:
17]} 21. Nxa8 {[%emt 0:03:11]} fxe4+ {[%emt 0:01:51]} 22. Ke3 {[%emt 0:00:12]}
Bxf1 {[%emt 0:00:36]} 23. Bxf1 {[%emt 0:00:19]} Rxa8 {[%emt 0:00:38]} 24. Bc4+
{[%emt 0:00:04]} Kh8 {[%emt 0:00:19]} 25. Rf1 {[%emt 0:00:10]} Nb4 {[%emt 0:07:
18]} 26. c3 {[%emt 0:02:26]} Nd3 {[%emt 0:00:06]} 27. Kxe4 {[%emt 0:00:58]} Nf4
{[%emt 0:00:34]} 28. Be3 {[%emt 0:02:30]} g5 {[%emt 0:01:21]} 29. Bxf4 {
[%emt 0:01:30]} gxf4 {[%emt 0:00:16]} 30. Kd5 {[%emt 0:00:59]} Kg7 {[%emt 0:01:
40]} 31. Ke6 {[%emt 0:01:22]} Re8+ {[%emt 0:01:02]} 32. Kd7 {[%emt 0:00:04]}
Rf8 {[%emt 0:00:25]} 33. Ke7 {[%emt 0:00:08]} Rf6 {[%emt 0:02:08]} 34. Bd5 {
[%emt 0:02:20]} b6 {[%emt 0:00:26]} 35. Rh1 {[%emt 0:02:25]} h6 {[%emt 0:00:46]
} 36. Be4 {[%emt 0:00:21]} Rf7+ {[%emt 0:00:17]} 37. Kxd6 {[%emt 0:00:03]} Kf6
{[%emt 0:00:43]} 38. Rh5 {[%emt 0:00:49]} Kg7 {[%emt 0:01:17]} 39. Kxe5 {
[%emt 0:00:32]} f3 {[%emt 0:00:17]} 40. Rf5 {[%emt 0:00:56]} f2 {[%emt 0:00:38]
} 41. Rxf7+ {[%emt 0:31:25]} Kxf7 {[%emt 0:30:01]} 42. Bd3 {[%emt 0:00:09]} 1-0

[Event "23rd ETCC Women 2021"]
[Site "Catez"]
[Date "2021.11.15"]
[Round "4.48"]
[White "Rodsmoen, Maud"]
[Black "Lanchava, Tea"]
[Result "1-0"]
[ECO "B06"]
[WhiteElo "1953"]
[BlackElo "2215"]
[Annotator "NA"]
[PlyCount "65"]
[EventDate "2021.11.08"]
[EventType "team-tourn"]
[EventCountry "SLO"]
[SourceTitle "playchess.com"]
[Source "ChessBase"]
[SourceQuality "1"]
[WhiteTeam "Norway"]
[BlackTeam "Netherlands"]
[WhiteTeamCountry "NOR"]
[BlackTeamCountry "NED"]
[TimeControl "40/5400+30:1800+30"]

1. e4 {[%emt 0:00:03]} g6 {[%emt 0:00:16]} 2. d4 {[%emt 0:00:07]} Bg7 {[%emt 0:
00:26]} 3. Nc3 {[%emt 0:00:28]} d6 {[%emt 0:00:21]} 4. f4 {[%emt 0:00:49]} a6 {
[%emt 0:00:32]} 5. Nf3 {[%emt 0:01:58]} b5 {[%emt 0:00:49]} 6. Bd3 {[%emt 0:04:
09]} Nd7 {[%emt 0:00:37]} 7. O-O {[%emt 0:02:59]} c5 {[%emt 0:00:44]} 8. e5 {
[%emt 0:12:52]} cxd4 {[%emt 0:05:39]} 9. Be4 {[%emt 0:03:28]} dxc3 {[%emt 0:02:
09]} 10. Bxa8 {[%emt 0:00:57]} Qc7 {[%emt 0:01:12]} 11. Qd4 {[%emt 0:13:00]}
dxe5 {[%emt 0:12:12]} 12. fxe5 {[%emt 0:02:16]} Nxe5 {[%emt 0:00:52]} 13. Qxc3
{[%emt 0:15:30]} Qxc3 {[%emt 0:12:20]} 14. bxc3 {[%emt 0:00:21]} Nxf3+ {
[%emt 0:30:05]} 15. Rxf3 {[%emt 0:00:51]} f5 {[%emt 0:00:06]} 16. a4 {[%emt 0:
15:38]} b4 {[%emt 0:01:05]} 17. Bd2 {[%emt 0:06:34]} bxc3 {[%emt 0:08:47]} 18.
Bxc3 {[%emt 0:00:29]} Nf6 {[%emt 0:00:03]} 19. Bc6+ {[%emt 0:02:06]} Kf7 {
[%emt 0:00:17]} 20. Re1 {[%emt 0:01:02]} g5 {[%emt 0:02:22]} 21. Rfe3 {[%emt 0:
01:14]} e6 {[%emt 0:00:09]} 22. Rd3 {[%emt 0:00:48]} h5 {[%emt 0:02:34]} 23.
Be5 {[%emt 0:01:32]} Bf8 {[%emt 0:03:06]} 24. Bd6 {[%emt 0:03:13]} Bg7 {
[%emt 0:00:59]} 25. c4 {[%emt 0:01:25]} h4 {[%emt 0:02:33]} 26. c5 {[%emt 0:01:
24]} g4 {[%emt 0:05:51]} 27. Rb1 {[%emt 0:01:13]} a5 {[%emt 0:03:50]} 28. Bb7 {
[%emt 0:00:52]} Kg6 {[%emt 0:00:56]} 29. c6 {[%emt 0:01:04]} Ne4 {[%emt 0:00:
40]} 30. Bc7 {[%emt 0:02:50]} Bf8 {[%emt 0:01:16]} 31. Bb6 {[%emt 0:02:36]} Nc5
{[%emt 0:01:47]} 32. Rd8 {[%emt 0:01:28]} Bxb7 {[%emt 0:00:15]} 33. Rxf8 {
[%emt 0:00:58]} 1-0

[Event "23rd ETCC Women 2021"]
[Site "Catez"]
[Date "2021.11.15"]
[Round "4.49"]
[White "Cvitan, Ena"]
[Black "Georgescu, Lena"]
[Result "1/2-1/2"]
[ECO "D39"]
[WhiteElo "2234"]
[BlackElo "2262"]
[Annotator "NA"]
[PlyCount "62"]
[EventDate "2021.11.08"]
[EventType "team-tourn"]
[EventCountry "SLO"]
[SourceTitle "playchess.com"]
[Source "ChessBase"]
[SourceQuality "1"]
[WhiteTeam "Croatia"]
[BlackTeam "Switzerland"]
[WhiteTeamCountry "CRO"]
[BlackTeamCountry "SUI"]
[TimeControl "40/5400+30:1800+30"]

1. d4 {[%emt 0:00:13]} Nf6 {[%emt 0:00:03]} 2. c4 {[%emt 0:00:10]} e6 {[%emt 0:
00:03]} 3. Nf3 {[%emt 0:00:09]} d5 {[%emt 0:00:04]} 4. Nc3 {[%emt 0:00:48]} Bb4
{[%emt 0:00:04]} 5. Bg5 {[%emt 0:06:03]} dxc4 {[%emt 0:00:29]} 6. e4 {[%emt 0:
01:06]} h6 {[%emt 0:00:06]} 7. Bxf6 {[%emt 0:00:27]} Qxf6 {[%emt 0:00:05]} 8.
Bxc4 {[%emt 0:00:09]} c5 {[%emt 0:00:09]} 9. O-O {[%emt 0:03:19]} cxd4 {
[%emt 0:01:28]} 10. Nb5 {[%emt 0:18:21]} Qe7 {[%emt 0:00:41]} 11. Nbxd4 {
[%emt 0:09:02]} O-O {[%emt 0:10:36]} 12. Qe2 {[%emt 0:01:03]} a6 {[%emt 0:02:
49]} 13. e5 {[%emt 0:04:27]} b5 {[%emt 0:07:28]} 14. Bd3 {[%emt 0:00:12]} Bb7 {
[%emt 0:00:08]} 15. Be4 {[%emt 0:04:39]} Ra7 {[%emt 0:05:51]} 16. Rac1 {
[%emt 0:02:46]} Bc5 {[%emt 0:09:09]} 17. Bxb7 {[%emt 0:13:07]} Rxb7 {[%emt 0:
00:48]} 18. Qe4 {[%emt 0:00:21]} Rc7 {[%emt 0:03:37]} 19. Rc2 {[%emt 0:04:50]}
Rfc8 {[%emt 0:14:29]} 20. Rfc1 {[%emt 0:01:07]} Bxd4 {[%emt 0:02:04]} 21. Nxd4
{[%emt 0:00:16]} Rxc2 {[%emt 0:00:46]} 22. Rxc2 {[%emt 0:00:06]} Rxc2 {[%emt 0:
01:31]} 23. Qxc2 {[%emt 0:00:41]} Qd7 {[%emt 0:00:35]} 24. Nf3 {[%emt 0:09:46]}
Nc6 {[%emt 0:00:40]} 25. h3 {[%emt 0:00:17]} Qd5 {[%emt 0:02:36]} 26. b3 {
[%emt 0:01:03]} Kf8 {[%emt 0:13:15]} 27. Qe2 {[%emt 0:00:53]} Ke7 {[%emt 0:03:
10]} 28. Qe3 {[%emt 0:00:08]} Qd1+ {[%emt 0:04:54]} 29. Kh2 {[%emt 0:00:43]}
Qd5 {[%emt 0:00:17]} 30. Kg1 {[%emt 0:00:23]} Qd1+ {[%emt 0:00:53]} 31. Kh2 {
[%emt 0:00:06]} Qd5 {[%emt 0:00:11]} 1/2-1/2

[Event "23rd ETCC Women 2021"]
[Site "Catez"]
[Date "2021.11.15"]
[Round "4.50"]
[White "Hakimifard, Ghazal"]
[Black "Medic, Mirjana"]
[Result "1-0"]
[ECO "C08"]
[WhiteElo "2267"]
[BlackElo "2196"]
[Annotator "NA"]
[PlyCount "55"]
[EventDate "2021.11.08"]
[EventType "team-tourn"]
[EventCountry "SLO"]
[SourceTitle "playchess.com"]
[Source "ChessBase"]
[SourceQuality "1"]
[WhiteTeam "Switzerland"]
[BlackTeam "Croatia"]
[WhiteTeamCountry "SUI"]
[BlackTeamCountry "CRO"]
[TimeControl "40/5400+30:1800+30"]

1. e4 {[%emt 0:00:03]} e6 {[%emt 0:00:05]} 2. d4 {[%emt 0:00:05]} d5 {[%emt 0:
00:07]} 3. Nd2 {[%emt 0:00:05]} c5 {[%emt 0:00:32]} 4. exd5 {[%emt 0:00:07]}
exd5 {[%emt 0:00:01]} 5. Ngf3 {[%emt 0:00:08]} Nf6 {[%emt 0:00:13]} 6. Bb5+ {
[%emt 0:00:19]} Bd7 {[%emt 0:00:08]} 7. Bxd7+ {[%emt 0:00:13]} Nbxd7 {[%emt 0:
00:10]} 8. O-O {[%emt 0:00:48]} Be7 {[%emt 0:02:10]} 9. dxc5 {[%emt 0:03:36]}
Nxc5 {[%emt 0:00:09]} 10. Nb3 {[%emt 0:00:05]} Nce4 {[%emt 0:00:21]} 11. Nfd4 {
[%emt 0:00:13]} Qd7 {[%emt 0:02:35]} 12. f3 {[%emt 0:00:09]} Nd6 {[%emt 0:00:
43]} 13. Nc5 {[%emt 0:00:43]} Qc8 {[%emt 0:03:37]} 14. Nd3 {[%emt 0:00:05]} O-O
{[%emt 0:00:39]} 15. Re1 {[%emt 0:03:34]} Re8 {[%emt 0:00:17]} 16. Be3 {
[%emt 0:02:09]} Nc4 {[%emt 0:04:48]} 17. Bf2 {[%emt 0:01:24]} Qd7 {[%emt 0:11:
37]} 18. b3 {[%emt 0:04:24]} Nb6 {[%emt 0:08:00]} 19. Qd2 {[%emt 0:03:13]} Bd6
{[%emt 0:17:53]} 20. a4 {[%emt 0:08:03]} Rxe1+ {[%emt 0:08:57]} 21. Rxe1 {
[%emt 0:02:37]} Re8 {[%emt 0:02:33]} 22. Rxe8+ {[%emt 0:13:37]} Qxe8 {[%emt 0:
00:09]} 23. Nb5 {[%emt 0:07:51]} Qb8 {[%emt 0:02:41]} 24. g3 {[%emt 0:04:40]}
Nc8 {[%emt 0:04:24]} 25. Bd4 {[%emt 0:03:00]} Ne8 {[%emt 0:05:38]} 26. Qe3 {
[%emt 0:02:12]} Kf8 {[%emt 0:01:04]} 27. Nc5 {[%emt 0:03:29]} Nb6 {[%emt 0:09:
02]} 28. a5 {[%emt 0:00:51]} 1-0

[Event "23rd ETCC Women 2021"]
[Site "Catez"]
[Date "2021.11.15"]
[Round "4.51"]
[White "Berke, Ana"]
[Black "Stoeri, Laura"]
[Result "0-1"]
[ECO "B33"]
[WhiteElo "2135"]
[BlackElo "2130"]
[Annotator "ChessBase"]
[PlyCount "114"]
[EventDate "2021.11.08"]
[EventType "team-tourn"]
[EventCountry "SLO"]
[SourceTitle "playchess.com"]
[Source "ChessBase"]
[SourceQuality "1"]
[WhiteTeam "Croatia"]
[BlackTeam "Switzerland"]
[WhiteTeamCountry "CRO"]
[BlackTeamCountry "SUI"]
[TimeControl "40/5400+30:1800+30"]

1. e4 {[%emt 0:00:04]} c5 {[%emt 0:00:04]} 2. Nf3 {[%emt 0:00:55]} Nc6 {
[%emt 0:00:03]} 3. d4 {[%emt 0:03:22]} cxd4 {[%emt 0:00:06]} 4. Nxd4 {[%emt 0:
00:04]} Nf6 {[%emt 0:01:07]} 5. Nc3 {[%emt 0:01:47]} e5 {[%emt 0:00:19]} 6. Nf3
{[%emt 0:01:28]} Bb4 {[%emt 0:10:51]} 7. Bc4 {[%emt 0:11:03]} Qa5 {[%emt 0:07:
53]} 8. Bd2 {[%emt 0:05:53]} Qc5 {[%emt 0:05:56]} 9. Bd5 {[%emt 0:03:40]} O-O {
[%emt 0:04:33]} 10. O-O {[%emt 0:01:23]} Bxc3 {[%emt 0:13:00]} 11. Bxc3 {
[%emt 0:00:41]} d6 {[%emt 0:00:04]} 12. Qd3 {[%emt 0:08:27]} Ne7 {[%emt 0:20:
05]} 13. Bb3 {[%emt 0:08:11]} Ng6 {[%emt 0:00:11]} 14. Bd2 {[%emt 0:06:02]} Bd7
{[%emt 0:05:54]} 15. Bg5 {[%emt 0:09:20]} Ne8 {[%emt 0:05:45]} 16. h4 {[%emt 0:
05:33]} h6 {[%emt 0:03:29]} 17. Be3 {[%emt 0:04:22]} Qc7 {[%emt 0:00:08]} 18.
h5 {[%emt 0:02:22]} Ne7 {[%emt 0:00:05]} 19. Nh4 {[%emt 0:02:03]} Be6 {[%emt 0:
08:12]} 20. f4 {[%emt 0:01:42]} exf4 {[%emt 0:05:40]} 21. Rxf4 {[%emt 0:00:49]}
Bxb3 {[%emt 0:00:14]} 22. Qxb3 {[%emt 0:02:35]} d5 {[%emt 0:06:16]} 23. Raf1 {
[%emt 0:02:11]} Rd8 {[%emt 0:00:25]} 24. Ng6 {[%emt 0:01:55]} Nxg6 {[%emt 0:00:
55]} 25. hxg6 {[%emt 0:00:10]} Nf6 {[%emt 0:00:47]} 26. e5 {[%emt 0:01:11]}
Qxe5 {[%emt 0:00:37]} 27. Bd4 {[%emt 0:01:36]} Qg5 {[%emt 0:00:34]} 28. Qxb7 {
[%emt 0:07:01]} fxg6 {[%emt 0:00:14]} 29. Qc6 {[%emt 0:03:01]} Rde8 {[%emt 0:
00:36]} 30. Qc3 {[%emt 0:02:25]} Re2 {[%emt 0:00:22]} 31. Qf3 {[%emt 0:00:25]}
Rxc2 {[%emt 0:00:15]} 32. a4 {[%emt 0:02:36]} h5 {[%emt 0:00:05]} 33. a5 {
[%emt 0:00:28]} a6 {[%emt 0:00:18]} 34. Bc3 {[%emt 0:00:34]} Kh7 {[%emt 0:00:
44]} 35. Qh3 {[%emt 0:00:48]} Kh6 {[%emt 0:00:37]} 36. Bd4 {[%emt 0:01:05]} Re8
{[%emt 0:01:18]} 37. Bxf6 {[%emt 0:00:58]} gxf6 {[%emt 0:00:01]} 38. Rxf6 {
[%emt 0:00:34]} Ree2 {[%emt 0:00:57]} 39. R6f2 {[%emt 0:00:18]} Rxf2 {[%emt 0:
00:31]} 40. Rxf2 {[%emt 0:00:02]} Rxf2 {[%emt 0:00:39]} 41. Kxf2 {[%emt 0:30:
04]} Qd2+ {[%emt 0:04:54]} 42. Kg1 {[%emt 0:00:00]} Qxb2 {[%emt 0:02:53]} 43.
Qe3+ {[%emt 0:00:00]} Kh7 {[%emt 0:00:04]} 44. Qa7+ {[%emt 0:00:00]} Kh6 {
[%emt 0:00:02]} 45. Qe3+ {[%emt 0:00:00]} Kh7 {[%emt 0:03:41]} 46. Qa7+ {
[%emt 0:00:00]} Qg7 {[%emt 0:04:51]} 47. Qxa6 {[%emt 0:00:00]} Qd4+ {[%emt 0:
00:02]} 48. Kh2 {[%emt 0:00:00]} Qh4+ {[%emt 0:00:45]} 49. Kg1 {[%emt 0:00:00]}
d4 {[%emt 0:00:35]} 50. Qa7+ {[%emt 0:00:00]} Kh6 {[%emt 0:00:15]} 51. a6 {
[%emt 0:00:00]} Qe1+ {[%emt 0:00:24]} 52. Kh2 {[%emt 0:00:00]} Qe5+ {[%emt 0:
00:47]} 53. Kg1 {[%emt 0:00:00]} d3 {[%emt 0:00:13]} 54. Qa8 {[%emt 0:01:53]}
d2 {[%emt 0:10:14]} 55. Qf8+ {[%emt 0:00:12]} Kh7 {[%emt 0:00:16]} 56. Qf7+ {
[%emt 0:01:01]} Qg7 {[%emt 0:00:07]} 57. Qd5 {[%emt 0:05:25]} Qa1+ {[%emt 0:00:
18]} 0-1

[Event "23rd ETCC Women 2021"]
[Site "Catez"]
[Date "2021.11.15"]
[Round "4.53"]
[White "Atalik, Ekaterina"]
[Black "Ptacnikova, Lenka"]
[Result "0-1"]
[ECO "E11"]
[WhiteElo "2430"]
[BlackElo "2200"]
[Annotator "NA"]
[PlyCount "78"]
[EventDate "2021.11.08"]
[EventType "team-tourn"]
[EventCountry "SLO"]
[SourceTitle "playchess.com"]
[Source "ChessBase"]
[SourceQuality "1"]
[WhiteTeam "Turkey"]
[BlackTeam "Iceland"]
[WhiteTeamCountry "TUR"]
[BlackTeamCountry "ISL"]
[TimeControl "40/5400+30:1800+30"]

1. d4 {[%emt 0:00:03]} Nf6 {[%emt 0:00:08]} 2. Nf3 {[%emt 0:00:22]} e6 {
[%emt 0:00:54]} 3. c4 {[%emt 0:00:14]} Bb4+ {[%emt 0:00:11]} 4. Bd2 {[%emt 0:
00:21]} Qe7 {[%emt 0:00:57]} 5. g3 {[%emt 0:00:31]} Nc6 {[%emt 0:01:07]} 6. Nc3
{[%emt 0:01:04]} Bxc3 {[%emt 0:00:29]} 7. Bxc3 {[%emt 0:00:06]} Ne4 {[%emt 0:
00:08]} 8. Rc1 {[%emt 0:00:19]} d6 {[%emt 0:01:29]} 9. Bg2 {[%emt 0:01:13]} O-O
{[%emt 0:00:27]} 10. d5 {[%emt 0:02:07]} Nxc3 {[%emt 0:00:56]} 11. Rxc3 {
[%emt 0:00:19]} Nb8 {[%emt 0:00:30]} 12. O-O {[%emt 0:02:24]} e5 {[%emt 0:00:
25]} 13. Qc2 {[%emt 0:07:12]} Nd7 {[%emt 0:02:07]} 14. b4 {[%emt 0:01:54]} Nf6
{[%emt 0:03:28]} 15. Nd2 {[%emt 0:02:18]} Bd7 {[%emt 0:04:23]} 16. c5 {[%emt 0:
06:19]} a5 {[%emt 0:01:58]} 17. cxd6 {[%emt 0:09:19]} cxd6 {[%emt 0:00:53]} 18.
Rb1 {[%emt 0:09:46]} axb4 {[%emt 0:09:24]} 19. Rxb4 {[%emt 0:00:12]} b5 {
[%emt 0:00:40]} 20. e4 {[%emt 0:05:30]} Ra7 {[%emt 0:03:12]} 21. Nb1 {[%emt 0:
08:08]} Rfa8 {[%emt 0:02:50]} 22. a3 {[%emt 0:04:31]} h6 {[%emt 0:11:47]} 23.
Bf1 {[%emt 0:02:50]} Ra4 {[%emt 0:08:04]} 24. Rxa4 {[%emt 0:02:21]} bxa4 {
[%emt 0:00:23]} 25. Rc4 {[%emt 0:00:58]} Qe8 {[%emt 0:08:23]} 26. Nc3 {[%emt 0:
01:24]} Rc8 {[%emt 0:00:26]} 27. Qb2 {[%emt 0:02:53]} Rxc4 {[%emt 0:04:35]} 28.
Bxc4 {[%emt 0:00:06]} Qc8 {[%emt 0:04:13]} 29. Qb4 {[%emt 0:00:08]} Bh3 {
[%emt 0:01:43]} 30. f3 {[%emt 0:09:34]} Qc7 {[%emt 0:00:50]} 31. Nd1 {[%emt 0:
02:51]} Qa7+ {[%emt 0:01:57]} 32. Kh1 {[%emt 0:01:37]} Nd7 {[%emt 0:10:31]} 33.
Be2 {[%emt 0:01:55]} h5 {[%emt 0:02:12]} 34. Qxd6 {[%emt 0:02:18]} f6 {[%emt 0:
03:12]} 35. Qb4 {[%emt 0:00:33]} Nc5 {[%emt 0:01:17]} 36. Nf2 {[%emt 0:01:36]}
Bd7 {[%emt 0:00:31]} 37. Kg2 {[%emt 0:00:25]} Nb3 {[%emt 0:00:41]} 38. Bd1 {
[%emt 0:05:12]} Nd4 {[%emt 0:02:16]} 39. Qe7 {[%emt 0:01:26]} Bh3+ {[%emt 0:00:
11]} 0-1

[Event "23rd ETCC Women 2021"]
[Site "Catez"]
[Date "2021.11.15"]
[Round "4.54"]
[White "Thorsteinsdottir, Hallgerdur"]
[Black "Caglar, Sila"]
[Result "1/2-1/2"]
[ECO "B40"]
[WhiteElo "2010"]
[BlackElo "2250"]
[Annotator "NA"]
[PlyCount "83"]
[EventDate "2021.11.08"]
[EventType "team-tourn"]
[EventCountry "SLO"]
[SourceTitle "playchess.com"]
[Source "ChessBase"]
[SourceQuality "1"]
[WhiteTeam "Iceland"]
[BlackTeam "Turkey"]
[WhiteTeamCountry "ISL"]
[BlackTeamCountry "TUR"]
[TimeControl "40/5400+30:1800+30"]

1. e4 {[%emt 0:00:05]} c5 {[%emt 0:00:04]} 2. Nf3 {[%emt 0:00:11]} e6 {[%emt 0:
00:05]} 3. g3 {[%emt 0:00:21]} Nc6 {[%emt 0:00:07]} 4. Bg2 {[%emt 0:00:39]} Nf6
{[%emt 0:00:43]} 5. Qe2 {[%emt 0:00:37]} d5 {[%emt 0:01:06]} 6. exd5 {[%emt 0:
04:59]} Nxd5 {[%emt 0:00:27]} 7. O-O {[%emt 0:00:20]} Be7 {[%emt 0:00:41]} 8.
Rd1 {[%emt 0:00:42]} Bf6 {[%emt 0:07:31]} 9. Nc3 {[%emt 0:04:05]} O-O {[%emt 0:
04:01]} 10. Ne4 {[%emt 0:04:17]} b6 {[%emt 0:03:34]} 11. c3 {[%emt 0:05:44]}
Bb7 {[%emt 0:02:08]} 12. d4 {[%emt 0:12:05]} cxd4 {[%emt 0:02:22]} 13. Nxf6+ {
[%emt 0:00:31]} Qxf6 {[%emt 0:01:18]} 14. Nxd4 {[%emt 0:01:32]} Rad8 {[%emt 0:
07:19]} 15. Nxc6 {[%emt 0:05:37]} Bxc6 {[%emt 0:00:08]} 16. c4 {[%emt 0:01:29]}
Ne7 {[%emt 0:03:52]} 17. Bf4 {[%emt 0:03:53]} Bxg2 {[%emt 0:01:57]} 18. Kxg2 {
[%emt 0:00:06]} Nc6 {[%emt 0:00:50]} 19. Bd6 {[%emt 0:06:38]} Rfe8 {[%emt 0:03:
52]} 20. Qe4 {[%emt 0:00:57]} Rc8 {[%emt 0:04:38]} 21. b4 {[%emt 0:04:29]} e5 {
[%emt 0:05:58]} 22. Rd5 {[%emt 0:07:46]} Qe6 {[%emt 0:03:19]} 23. Rad1 {
[%emt 0:10:05]} f6 {[%emt 0:07:10]} 24. c5 {[%emt 0:03:33]} Nd4 {[%emt 0:09:15]
} 25. Re1 {[%emt 0:01:46]} Nb5 {[%emt 0:05:28]} 26. Re3 {[%emt 0:05:12]} Rcd8 {
[%emt 0:14:30]} 27. Red3 {[%emt 0:00:59]} bxc5 {[%emt 0:07:03]} 28. bxc5 {
[%emt 0:02:35]} Nxd6 {[%emt 0:02:55]} 29. cxd6 {[%emt 0:00:52]} Rd7 {[%emt 0:
00:10]} 30. Qa4 {[%emt 0:02:53]} Red8 {[%emt 0:00:44]} 31. Ra5 {[%emt 0:01:55]}
Rxd6 {[%emt 0:01:25]} 32. Rxd6 {[%emt 0:00:32]} Qxd6 {[%emt 0:00:06]} 33. Qb3+
{[%emt 0:02:20]} Kf8 {[%emt 0:01:15]} 34. Rxa7 {[%emt 0:00:16]} Qd5+ {[%emt 0:
00:52]} 35. Qxd5 {[%emt 0:01:11]} Rxd5 {[%emt 0:00:01]} 36. a4 {[%emt 0:01:09]}
Rd3 {[%emt 0:00:15]} 37. a5 {[%emt 0:02:01]} Ra3 {[%emt 0:00:11]} 38. a6 {
[%emt 0:00:48]} Kg8 {[%emt 0:01:00]} 39. h4 {[%emt 0:02:47]} h5 {[%emt 0:00:34]
} 40. Kf1 {[%emt 0:00:57]} Ra2 {[%emt 0:00:08]} 41. Kg2 {[%emt 0:30:24]} Ra3 {
[%emt 0:30:08]} 42. Kf1 {[%emt 0:01:07]} 1/2-1/2